Cogmind - Beta 13 @@@ ROGUE MODE // 2024.06.05 @ 23:55:26 Player: paplal Result: Destroyed by G-47 Trooper with Particle Gun Performance ------------- Evolutions (0) 0 Regions Visited (2) 400 Robots Destroyed (47) 235 Value Destroyed (870) 870 Prototype IDs (0) 0 Alien Tech Used (0) 0 Bonus (0) 0 TOTAL SCORE: 1505 Bonus ------- None Cogmind --------- Core Integrity 0/250 Matter 300/300 Energy 248/250 System Corruption 0% Temperature Cool (10) Movement Walking (190) Ox1 Location -10/Mines Parts ------- > --- POWER (1) -------- Ion Engine > --- PROPULSION (2) --- Aluminum Leg > --- UTILITY (2) ------ Small Storage Unit > --- WEAPON (2) ------- Datajack > --- INVENTORY (8) ---- Light Ion Engine Flight Unit Flight Unit Flight Unit Flight Unit Flight Unit Flight Unit Light Assault Rifle Peak State ------------ > --- POWER ------------ Ion Engine > --- PROPULSION ------- Aluminum Leg Aluminum Leg > --- UTILITY ---------- Small Storage Unit Tractor Beam > --- WEAPON ----------- EM Pulse Gun Medium Laser > --- INVENTORY -------- Light Ion Engine Aluminum Leg Aluminum Leg Flight Unit [Rating: 7] Favorites ----------- Power Ion Engine Engine Ion Engine Propulsion Aluminum Leg Leg Aluminum Leg Utility Small Storage Unit Device Tractor Beam Storage Small Storage Unit Protection Light Armor Plating Weapon Medium Laser Energy Gun Medium Laser Energy Cannon Beam Cannon Ballistic Gun Assault Rifle Special Melee Weapon Datajack Build | -11 -10 -10 ------- Run | Yrd Mat Min Slots Evolved . | . . . Power . | . . . Propulsion . | . . . Utility . | . . . Weapon . | . . . Parts Attached 15 | 2 12 1 Power 2 | 1 1 . Engine 2 | 1 1 . Core . | . . . Reactor . | . . . Propulsion 4 | . 4 . Treads . | . . . Leg 4 | . 4 . Wheel . | . . . Hover . | . . . Flight . | . . . Utility 3 | 1 2 . Device 1 | . 1 . Storage 1 | 1 . . Processor . | . . . Hackware . | . . . Protection 1 | . 1 . Artifact . | . . . Weapon 6 | . 5 1 Energy Gun 3 | . 2 1 Energy Cannon 1 | . 1 . Ballistic Gun 1 | . 1 . Ballistic Cannon . | . . . Launcher . | . . . Special Weapon . | . . . Impact Weapon . | . . . Slashing Weapon . | . . . Piercing Weapon . | . . . Special Melee Weapon 1 | . 1 . Unidentified Prototypes . | . . . Parts Lost 9 | . 6 3 Power 1 | . 1 . Propulsion 2 | . 1 1 Utility 1 | . 1 . Weapon 5 | . 3 2 Highest Loss Streak 3 | . 2 3 To Critical Strikes . | . . . Average Slot Usage (%) 73 | . 71 82 Engine 13 | . 12 14 Leg 14 | . 11 25 Device 5 | . 6 . Storage 14 | . 14 14 Protection 5 | . 5 1 Energy Gun 9 | . 11 . Energy Cannon 4 | . 2 10 Ballistic Gun 3 | . 4 . Special Melee Weapon 3 | . 1 14 Naked Turns . | . . . Heaviest Build 17 | 8 17 17 Greatest Support 20 | 3 20 20 Greatest Overweight (x) 5 | 2 5 1 Average Overweight (x) 1 | 1 1 . Largest Inventory Capacity 8 | 8 8 8 Average Capacity 7 | 7 8 8 Most Carried 8 | 5 8 8 Average Carried 6 | 4 6 7 Final Capacity 8 | 8 8 8 Final Carried 8 | 5 7 8 Class Distribution -------------------- 100% | Mutant Dominant Class ---------------- Mutant | -10/Materials Mutant | -10/Mines Resources | -11 -10 -10 ----------- Run | Yrd Mat Min Matter Collected 462 | 220 242 . Remotely 197 | . 197 . Salvage Created 1397 | . 1264 133 Parts 96 | . 83 13 Haulers Intercepted . | . . . Recyclers Shooed 2 | . 2 . Parts Field Recycled . | . . . Retrieved Matter . | . . . Parts Self-Destructed . | . . . Prevented . | . . . Kills | -11 -10 -10 ------- Run | Yrd Mat Min Combat Hostiles Destroyed 29 | . 23 6 Guns 17 | . 17 . Cannons 10 | . 4 6 AOE 2 | . 2 . Classes Destroyed 8 | . 8 . Worker 6 | . 6 . Builder 4 | . 4 . Tunneler 1 | . 1 . Recycler 3 | . 3 . Operator 2 | . 2 . Watcher 2 | . 2 . Swarmer 11 | . 6 5 Grunt 18 | . 17 1 Best Kill Streak 6 | . 6 2 Combat Bots Only 5 | . 5 2 Max Kills in Single Turn 3 | . 3 1 Gunslinging 1 | . 1 . Exploded 2 | . 2 . Melee . | . . . Uniques/NPCs Destroyed . | . . . Combat | -11 -10 -10 -------- Run | Yrd Mat Min Hostile Shots Fired 146 | . 76 70 Missed 51 | . 23 28 Damage Taken 1154 | . 675 479 Core 257 | . 153 104 Absorbed by Shields . | . . . Core Remaining (%) 100 | 100 . . Volleys Fired 147 | . 113 34 Largest 2 | . 2 1 Hottest 110 | . 110 60 Shots Fired 205 | . 171 34 Gun 153 | . 147 6 Cannon 52 | . 24 28 Launcher . | . . . Special . | . . . Kinetic 44 | . 44 . Thermal 153 | . 119 34 Explosive . | . . . Electromagnetic 8 | . 8 . Robot Hit Streak 11 | . 11 6 Robot Miss Streak 5 | . 3 5 Penetration Max . | . . . Secondary Targets 2 | . 2 . Max Gunslinging Chain 1 | . 1 . Shots Hit Robots 134 | . 115 19 Core Hits 65 | . 59 6 Critical Kills 1 | . 1 . Critical Parts Destroyed . | . . . Critical Strikes 7 | . 7 . Burn 6 | . 6 . Destroy 1 | . 1 . Melee Attacks 3 | . . 3 Impact . | . . . Slashing . | . . . Piercing . | . . . Sneak Attacks . | . . . Combat Hostiles . | . . . Follow-up Attacks . | . . . Damage Inflicted 2146 | . 1808 338 Guns 1266 | . 1243 23 Cannons 648 | . 333 315 Explosions 232 | . 232 . Melee . | . . . Ramming . | . . . Kinetic 363 | . 363 . Thermal 1694 | . 1356 338 Explosive . | . . . Electromagnetic 89 | . 89 . Impact . | . . . Slashing . | . . . Piercing . | . . . Highest Corruption . | . . . Average Corruption . | . . . Corruption Purged . | . . . Corruption Blocked . | . . . Overload Shots . | . . . Overflow Damage 105 | . 105 . Projectiles . | . . . Explosions 105 | . 105 . Melee . | . . . Knockbacks . | . . . Impact . | . . . Kinetic . | . . . Secondary . | . . . Self-Inflicted Damage 114 | . 114 . Shots 1 | . 1 . Rammed . | . . . Targets Rammed . | . . . Kicked . | . . . Crushed . | . . . Highest Temperature 445 | . 445 349 Average Temperature 86 | . 76 121 Received Heat Transfer 453 | . 273 180 Effects 5 | . 3 2 Shutdowns 1 | . 1 . Energy Bleed 1 | . . 1 Interference 1 | . 1 . Short Circuit 1 | . 1 . Damage (minor) 1 | . . 1 Siege Activations . | . . . Robots Corrupted . | . . . Combat Hostiles . | . . . Parts Fried . | . . . Impact Corruptions . | . . . Robots Melted . | . . . Combat Hostiles . | . . . Parts Melted 9 | . 9 . Heat Transferred 4344 | . 3628 716 Parts Sabotaged . | . . . Parts Stolen . | . . . Parts Stripped . | . . . Power Chain Reactions . | . . . Alert | -11 -10 -10 ------- Run | Yrd Mat Min Peak Influence 362 | . 362 311 Initial 141 | . . 141 Average 209 | . 209 254 Maximum Alert Level 1 | . 1 1 Low Security (%) 40 | 100 44 10 Level 1 59 | . 55 89 Level 2 . | . . . Level 3 . | . . . Level 4 . | . . . Level 5 . | . . . High Security . | . . . Max Security . | . . . Squads Dispatched 5 | . 5 . Investigation 2 | . 2 . Extermination . | . . . Reinforcement 3 | . 3 . Assault . | . . . Garrison . | . . . Intercept . | . . . Searches Triggered . | . . . Construction Impeded . | . . . Haulers Reinforced . | . . . Active Scanning Responses . | . . . Cargo Convoy Interrupts . | . . . Stealth | -11 -10 -10 --------- Run | Yrd Mat Min Distress Signals 1 | . 1 . Communications Jammed . | . . . Distress Signals . | . . . Times Spotted 42 | . 34 8 Peak Tracking Total 6 | . 6 3 Tactical Retreats . | . . . Traps | -11 -10 -10 ------- Run | Yrd Mat Min Traps Triggered 1 | . 1 . Indirectly . | . . . Trap Hack Attempts . | . . . Triggered . | . . . Disarmed . | . . . Reprogrammed . | . . . Reused . | . . . Traps Extracted . | . . . Installed . | . . . Triggered . | . . . Machines | -11 -10 -10 ---------- Run | Yrd Mat Min Machines Disabled 2 | . 2 . Max in Single Turn 2 | . 2 . Machines Repaired . | . . . Machines Dismantled . | . . . Machines Sabotaged . | . . . Overloaded Fab Kills . | . . . Hacking | -11 -10 -10 --------- Run | Yrd Mat Min Machines Accessed 3 | . 3 . Terminals 2 | . 2 . Fabricators . | . . . Repair Stations . | . . . Recycling Units 1 | . 1 . Scanalyzers . | . . . Garrison Access . | . . . Total Hacks 7 | . 7 . Successful 3 | . 3 . Failed 4 | . 4 . Catastrophic 1 | . 1 . Database Lockouts . | . . . Manual . | . . . Terminals 4 | . 4 . Fabricators . | . . . Repair Stations . | . . . Recycling Units 3 | . 3 . Scanalyzers . | . . . Garrison Access . | . . . Terminal Hacks 2 | . 2 . Hauler Manifests 2 | . 2 . Fabricator Hacks . | . . . Repair Station Hacks . | . . . Recycling Unit Hacks 1 | . 1 . Retrieve Components 1 | . 1 . Scanalyzer . | . . . Garrison Access Hacks . | . . . Unauthorized Hacks . | . . . Terminals . | . . . Fabricators . | . . . Repair Stations . | . . . Recycling Units . | . . . Scanalyzers . | . . . Garrison Access . | . . . Data Cores Recovered . | . . . Used . | . . . Hacking Detections 1 | . 1 . Full Trace Events 1 | . 1 . Feedback Events . | . . . Feedback Blocked . | . . . Robot Schematics Acquired . | . . . Robots Built . | . . . Authchips . | . . . Time . | . . . Total Robot Build Rating . | . . . Part Schematics Acquired . | . . . Parts Built . | . . . Authchips . | . . . Time . | . . . Total Part Build Rating . | . . . Parts Repaired . | . . . Time . | . . . Parts Recycled . | . . . Recycled Matter . | . . . Retrieved Matter . | . . . Retrieved Components 10 | . 10 . Parts Scanalyzed . | . . . Part Schematics Acquired . | . . . Parts Damaged . | . . . Bothacking | -11 -10 -10 ------------ Run | Yrd Mat Min Used RIF Installer . | . . . Robots Hacked . | . . . Non-combat . | . . . Combat . | . . . Robot Hacks Applied . | . . . Relay Couplers Released . | . . . Fabnet Peak Effective % . | . . . Robots Rewired . | . . . Allies Hacked . | . . . Hacks Repelled . | . . . Allies | -11 -10 -10 -------- Run | Yrd Mat Min Total Allies . | . . . Largest Group . | . . . Highest-Rated Group . | . . . Highest-Rated Ally . | . . . Total Orders . | . . . Ally Attacks . | . . . Total Damage . | . . . Kills . | . . . Allies Corrupted . | . . . Allies Melted . | . . . Intel | -11 -10 -10 ------- Run | Yrd Mat Min Robot Analysis Total . | . . . Derelict Logs Recovered . | . . . Drone Launches . | . . . Drone Recoveries . | . . . Exploration | -11 -10 -10 ------------- Run | Yrd Mat Min Turns Passed 1466 | 52 1181 233 Spaces Moved 638 | 43 488 107 Core 190 | 43 147 . Treads . | . . . Legs 448 | . 341 107 Wheels . | . . . Hover . | . . . Flight . | . . . Fastest Speed 50 | 50 120 120 Average Speed 162 | 105 174 130 Slowest Speed 300 | 150 300 190 Overloaded Moves . | . . . Propulsion Burnouts . | . . . Robots Hopped . | . . . Cave-ins Triggered . | . . . Exploration Rate (%) 31 | 3 78 14 Regions Visited 2 Branch Regions 1 Pre-discovered Areas . | . . . Known Exits Taken . | . . . Unknown Exits Taken 2 | 1 1 . Scrap Searched . | . . . Spaces Dug . | . . . Terrain Destroyed 24 | . 24 . Melee . | . . . Projectile . | . . . AOE 24 | . 24 . Terrain Rammed . | . . . Walls Destroyed . | . . . Machines Disabled . | . . . Actions | -11 -10 -10 --------- Run | Yrd Mat Min Total 867 | 49 649 169 Wait 26 | . 16 10 Move 636 | 42 487 107 Hop . | . . . Pick Up 28 | 5 16 7 Fast Attach 5 | 2 2 1 Attach 9 | . 9 . Detach . | . . . Swap 1 | . 1 . Drop 12 | . 5 7 Fire 147 | . 113 34 Melee 3 | . . 3 Ram . | . . . Kick . | . . . Crush . | . . . Escape Stasis . | . . . Rewire . | . . . Trap . | . . . Miscellaneous . | . . . Route ------- -11/Scrapyard -10/Materials (discovered 3 exits: [*Mat x2] / [*Min]) -10/Mines History --------- Turn | Location | Event 2 | -11/Scrapyard | Met Revision 17 5 | -11/Scrapyard | Discovered new exit (range 14) 53 | -11/Scrapyard | Entered Materials 323 | -10/Materials | Build established: Mutant 653 | -10/Materials | Discovered new exit (range 12) 847 | -10/Materials | Discovered new exit (range 15) 1014 | -10/Materials | Core integrity fell below 50% 1112 | -10/Materials | Discovered new exit (range 12) 1234 | -10/Materials | Entered Mines 1256 | -10/Mines | Met a Derelict bent on vengeance 1422 | -10/Mines | Core integrity fell below 20% 1467 | -10/Mines | Destroyed by G-47 Trooper with Particle Gun Last Messages --------------- 01272_ Dropped Aluminum Leg. 01273_ Acquired Flight Unit. 01275_ Dropped Aluminum Leg. 01276_ Acquired Flight Unit. 01278_ Dropped Aluminum Leg. 01278_ Acquired Lgt. Assault Rifle. 01288_ T-07 Excavator is excavating. 01343_ S-10 Pest destroyed. 01359_ Dropped Aluminum Leg. 01362_ Acquired Flight Unit. 01366_ Dropped Ion Engine. 01366_ Acquired Flight Unit. 01367_ Dropped Lgt. Ion Engine. 01374_ Acquired Flight Unit. 01409_ G-34 Mercenary destroyed. 01417_ Beam Cannon destroyed. 01421_ Jacked G-47 Trooper... 01425_ Acquired Sml. Laser. 01425_ Aluminum Leg destroyed. 01437_ Sml. Laser destroyed. Map ----- +----------------------------------------------------+ | | | | | ??????????????????????????????????????????? | | ??????????????????????????????????????????? | | ???????####???????????????????????????????? | | ?????### ##???####???????????????????????? | | ?????# ##### ##?????????????########?? | | ?????# #?????????????# #?? | | ?????# ######## ##????????????# """ #?? | | ?????##???????##! ##???????????# """ #?? | | ???????????????# #??????###### """ #?? | | ???????????????# #??????# =*%[ #?? | | ???????????????# ! #####??# ####*[""" #?? | | ???????????????#=% %= #??# #??#*%""" #?? | | ???????????????#% % #### #??# #??# """ #?? | | ???????????????## #??# #### ##?# #?? | | ????????????????## #??# #?# [""" #?? | | ?????????????????# #??####### #?# %""" #?? | | ?????????????????# #????????# ### *""" #?? | | ????????????????## ##???????# #?? | | ????????????????# ##??????##### #?? | | ????????????????# #??????????# #?? | | ????????????????# #####??????# #?? | | ????????????????## #??????########?? | | ?????????????????########g#???????????????? | | ????????????????????????#@#???????????????? | | ????????????????????????# #???????????????? | | ????????????????????????# #???????????????? | | ???????????????????????? #???????????????? | | ????????????????????????# #???????????????? | | ????????????????????????# #???????????????? | | ????????????????????????# #???????????????? | | ????????????????????????# #???????????????? | | ???????????????????????? #???????????????? | | ????????????????????????###???????????????? | | ??????????????????????????????????????????? | | ??????????????????????????????????????????? | | ??????????????????????????????????????????? | | ??????????????????????????????????????????? | | ??????????????????????????????????????????? | | ??????????????????????????????????????????? | | ??????????????????????????????????????????? | | ??????????????????????????????????????????? | | ??????????????????????????????????????????? | | ??????????????????????????????????????????? | | ??????????????????????????????????????????? | | ??????????????????????????????????????????? | | ??????????????????????????????????????????? | | ??????????????????????????????????????????? | | ??????????????????????????????????????????? | +----------------------------------------------------+ Best States ------------- Heat Dissipation 25 Energy Generation 10 Energy Capacity 250 Matter Stores 300 Matter Capacity 300 Sight Range 16 Terrain Scan Density 10 Armor Coverage 150 Evasion (%) 55 Item Schematics ----------------- None Robot Schematics ------------------ None Fabricated ------------ Nothing Alien Tech Used ----------------- None Achievements -------------- None Challenges ------------ None Game ------ Seed LaserEfficiencyStorage Manual? 0 Play Time 00:14:25 Cumulative 15.9 hours Start 2024.06.05 @ 23:43:18 End 2024.06.05 @ 23:55:26 Sessions 1 Manual Loads 0 Difficulty Rogue Special Mode None Game No. 25 Rogue 25 Adventurer 0 Explorer 0 Win Type - Total 0 Types 0/0/0/0/0/0/0/0/0 Lore% 13 Gallery% 23 Achievement% 17 Wizard Run 0 Options --------- Layout 2 ASCII 0 Keyboard 0 Movement Mouse Keybinds 0 Fullscreen 1 Font 48/Smallcaps Map View 50x44 Zoom Use 0% Tactical HUD 1 Map Filters NONE Filters NONE Steam 1 RUN: eaeac379-c973-4c94-930f-65935df016c2